[Event "NM-Senior Hurtig 2018"]
[Site "Frimurer Logen, Norway"]
[Date "2018.11.11"]
[Round "8.1"]
[White "Antonsen, Frode"]
[Black "Bjerke, Richard"]
[Result "0-1"]
[TimeControl "20 + 10"]
[WhiteElo "1656"]
[BlackElo "2094"]

1. Nf3 {[%clk 00:20:07]} {[%emt 00:00:02]} Nf6 {[%clk 00:20:02]} {[%emt
00:00:07]} 2. g3 {[%clk 00:19:55]} {[%emt 00:00:24]} g6 {[%clk 00:19:59]}
{[%emt 00:00:12]} 3. Bg2 {[%clk 00:19:58]} {[%emt 00:00:07]} Bg7 {[%clk
00:20:05]} {[%emt 00:00:04]} 4. d4 {[%clk 00:20:01]} {[%emt 00:00:08]} O-O
{[%clk 00:20:02]} {[%emt 00:00:13]} 5. O-O {[%clk 00:20:04]} {[%emt 00:00:07]}
d6 {[%clk 00:20:06]} {[%emt 00:00:05]} 6. c4 {[%clk 00:19:32]} {[%emt
00:00:43]} c6 {[%clk 00:20:10]} {[%emt 00:00:06]} 7. Nc3 {[%clk 00:18:52]}
{[%emt 00:00:50]} Bf5 {[%clk 00:20:08]} {[%emt 00:00:10]} 8. Bf4 {[%clk
00:17:08]} {[%emt 00:01:55]} a6 {[%clk 00:19:06]} {[%emt 00:01:12]} 9. Qd2
{[%clk 00:16:39]} {[%emt 00:00:40]} Re8 {[%clk 00:18:24]} {[%emt 00:00:51]} 10.
Rfe1 {[%clk 00:16:01]} {[%emt 00:00:48]} Ne4 {[%clk 00:18:14]} {[%emt
00:00:20]} 11. Nxe4 {[%clk 00:15:38]} {[%emt 00:00:34]} Bxe4 {[%clk 00:18:21]}
{[%emt 00:00:02]} 12. Ng5 {[%clk 00:15:10]} {[%emt 00:00:39]} Bxg2 {[%clk
00:18:02]} {[%emt 00:00:29]} 13. Kxg2 {[%clk 00:15:18]} {[%emt 00:00:02]} Nd7
{[%clk 00:17:10]} {[%emt 00:01:01]} 14. Nf3 {[%clk 00:14:32]} {[%emt 00:00:56]}
e5 {[%clk 00:15:56]} {[%emt 00:01:23]} 15. dxe5 {[%clk 00:13:36]} {[%emt
00:01:07]} dxe5 {[%clk 00:14:42]} {[%emt 00:01:24]} 16. Be3 {[%clk 00:13:24]}
{[%emt 00:00:22]} e4 {[%clk 00:13:09]} {[%emt 00:01:42]} 17. Nd4 {[%clk
00:11:43]} {[%emt 00:01:52]} Ne5 {[%clk 00:13:02]} {[%emt 00:00:18]} 18. Qc2
{[%clk 00:10:42]} {[%emt 00:01:10]} Ng4 {[%clk 00:11:47]} {[%emt 00:01:25]} 19.
Rad1 {[%clk 00:10:37]} {[%emt 00:00:16]} Nxe3+ {[%clk 00:10:45]} {[%emt
00:01:11]} 20. fxe3 {[%clk 00:10:45]} {[%emt 00:00:02]} Qg5 {[%clk 00:10:51]}
{[%emt 00:00:04]} 21. Qb3 {[%clk 00:10:20]} {[%emt 00:00:36]} Rab8 {[%clk
00:05:54]} {[%emt 00:05:08]} 22. Rf1 {[%clk 00:10:02]} {[%emt 00:00:27]} h5
{[%clk 00:05:18]} {[%emt 00:00:46]} 23. h4 {[%clk 00:07:38]} {[%emt 00:02:34]}
Qc5 {[%clk 00:04:35]} {[%emt 00:00:52]} 24. Qc3 {[%clk 00:06:48]} {[%emt
00:01:01]} Qe7 {[%clk 00:03:35]} {[%emt 00:10:29]} 25. Qc2 {[%clk 00:05:46]} f5
{[%clk 00:03:23]} 26. c5 {[%clk 00:05:30]} Be5 {[%clk 00:03:16]} 27. Qc4+
{[%clk 00:04:57]} Qf7 {[%clk 00:01:53]} 28. Qxf7+ Kxf7 {[%clk 00:02:01]} 29. b4
{[%clk 00:04:48]} Rbd8 {[%clk 00:01:33]} 30. Rd2 {[%clk 00:04:47]} Rd5 {[%clk
00:01:33]} 31. Rfd1 {[%clk 00:04:47]} Red8 {[%clk 00:01:29]} 32. Nb3 {[%clk
00:04:30]} 0-1

[Event "NM-Senior Hurtig 2018"]
[Site "Frimurer Logen, Norway"]
[Date "2018.11.11"]
[Round "8.2"]
[White "Hamre, Einar"]
[Black "Borch, Alex"]
[Result "1-0"]
[TimeControl "20 + 10"]
[WhiteElo "1778"]
[BlackElo "1728"]

1. e4 {[%clk 00:20:05]} {[%emt 00:00:03]} c6 {[%clk 00:20:06]} {[%emt
00:00:06]} 2. d4 {[%clk 00:20:10]} {[%emt 00:00:04]} d5 {[%clk 00:20:12]}
{[%emt 00:00:05]} 3. Nc3 {[%clk 00:20:17]} {[%emt 00:00:02]} dxe4 {[%clk
00:20:16]} {[%emt 00:00:07]} 4. Nxe4 {[%clk 00:20:25]} {[%emt 00:00:02]} Nf6
{[%clk 00:20:21]} {[%emt 00:00:04]} 5. Ng5 {[%clk 00:20:23]} {[%emt 00:00:12]}
h6 {[%clk 00:20:03]} {[%emt 00:00:29]} 6. N5f3 {[%clk 00:20:28]} {[%emt
00:00:05]} Bg4 {[%clk 00:19:36]} {[%emt 00:00:37]} 7. h3 {[%clk 00:19:53]}
{[%emt 00:00:44]} Bh5 {[%clk 00:19:43]} {[%emt 00:00:03]} 8. g4 {[%clk
00:19:26]} {[%emt 00:00:37]} Bg6 {[%clk 00:19:40]} {[%emt 00:00:14]} 9. Ne5
{[%clk 00:18:13]} {[%emt 00:01:23]} Bh7 {[%clk 00:19:12]} {[%emt 00:00:38]} 10.
c3 {[%clk 00:11:23]} {[%emt 00:07:00]} e6 {[%clk 00:19:16]} {[%emt 00:00:06]}
11. Bg2 {[%clk 00:08:56]} {[%emt 00:02:37]} Nbd7 {[%clk 00:18:22]} {[%emt
00:01:04]} 12. f4 {[%clk 00:07:48]} {[%emt 00:01:17]} Nxe5 {[%clk 00:16:43]}
{[%emt 00:01:49]} 13. fxe5 {[%clk 00:07:54]} {[%emt 00:00:05]} Nd5 {[%clk
00:16:28]} {[%emt 00:00:25]} 14. Nf3 {[%clk 00:06:38]} {[%emt 00:01:26]} Be7
{[%clk 00:16:24]} {[%emt 00:00:14]} 15. O-O {[%clk 00:06:04]} {[%emt 00:00:44]}
Qc7 {[%clk 00:15:38]} {[%emt 00:00:56]} 16. Qe2 {[%clk 00:04:33]} {[%emt
00:01:41]} O-O-O {[%clk 00:15:11]} {[%emt 00:00:37]} 17. a3 {[%clk 00:02:09]}
{[%emt 00:02:35]} g5 {[%clk 00:13:28]} {[%emt 00:01:52]} 18. c4 {[%clk
00:01:50]} {[%emt 00:00:30]} Nb6 {[%clk 00:13:16]} {[%emt 00:00:21]} 19. b4
{[%clk 00:01:43]} {[%emt 00:00:17]} Kb8 {[%clk 00:11:22]} {[%emt 00:02:05]} 20.
Be3 {[%clk 00:01:20]} {[%emt 00:00:32]} Rhg8 {[%clk 00:11:00]} {[%emt
00:00:32]} 21. a4 {[%clk 00:01:21]} {[%emt 00:00:10]} h5 {[%clk 00:09:07]}
{[%emt 00:02:02]} 22. a5 {[%clk 00:01:10]} {[%emt 00:00:22]} Nc8 {[%clk
00:08:41]} {[%emt 00:10:03]} 23. b5 {[%clk 00:01:05]} cxb5 {[%clk 00:04:55]} 24.
cxb5 {[%clk 00:00:56]} Be4 {[%clk 00:04:58]} 25. b6 {[%clk 00:00:44]} Qc2
{[%clk 00:03:00]} 26. bxa7+ {[%clk 00:00:29]} Nxa7 {[%clk 00:02:57]} 27. Qe1
{[%clk 00:00:36]} hxg4 28. hxg4 {[%clk 00:00:43]} Nc6 {[%clk 00:02:24]} 29. Rc1
{[%clk 00:00:49]} Qa4 {[%clk 00:01:45]} {[%emt 00:00:09]} 30. Qc3 {[%clk
00:00:44]} {[%emt 00:00:15]} Bb4 {[%clk 00:01:35]} {[%emt 00:00:21]} 31. Qb2
{[%clk 00:00:53]} {[%emt 00:00:01]} Qxa5 {[%emt 00:00:03]} 32. Ra1 {[%clk
00:00:38]} {[%emt 00:00:23]} Bc3 {[%clk 00:01:29]} {[%emt 00:00:25]} 33. Rxa5
{[%clk 00:00:46]} {[%emt 00:00:02]} Bxb2 {[%clk 00:01:38]} 34. Ra4 {[%clk
00:00:52]} {[%emt 00:00:04]} Bc3 {[%clk 00:01:23]} {[%emt 00:00:26]} 35. Nxg5
{[%clk 00:00:59]} {[%emt 00:00:03]} Bxg2 {[%clk 00:01:27]} {[%emt 00:00:06]} 36.
Kxg2 {[%clk 00:01:07]} {[%emt 00:00:02]} Bxd4 {[%clk 00:01:11]} {[%emt
00:00:26]} 37. Bxd4 {[%clk 00:00:32]} {[%emt 00:00:45]} Rxg5 {[%clk 00:01:20]}
{[%emt 00:00:01]} 38. Bb6 {[%clk 00:00:20]} {[%emt 00:00:22]} Rdg8 {[%clk
00:01:01]} {[%emt 00:00:29]} 39. Rxf7 {[%clk 00:00:24]} {[%emt 00:00:05]} Rxg4+
{[%clk 00:01:04]} {[%emt 00:00:08]} 40. Rxg4 {[%clk 00:00:32]} {[%emt
00:00:02]} Rxg4+ {[%clk 00:01:07]} {[%emt 00:00:07]} 41. Kf2 {[%clk 00:00:35]}
{[%emt 00:00:07]} Rg8 {[%clk 00:01:11]} {[%emt 00:00:06]} 42. Ke3 {[%clk
00:00:36]} {[%emt 00:00:09]} Nxe5 {[%clk 00:00:46]} {[%emt 00:00:35]} 43. Bc7+
{[%clk 00:00:43]} {[%emt 00:00:02]} Kc8 {[%clk 00:00:56]} {[%emt 00:00:01]} 44.
Bxe5 {[%clk 00:00:52]} {[%emt 00:00:02]} b6 {[%clk 00:00:53]} {[%emt 00:00:12]}
45. Rc7+ {[%clk 00:00:55]} {[%emt 00:00:07]} Kd8 {[%clk 00:01:00]} {[%emt
00:00:03]} 46. Rb7 {[%clk 00:01:03]} {[%emt 00:00:02]} Rg1 {[%clk 00:00:48]}
{[%emt 00:00:21]} 47. Rxb6 {[%clk 00:01:10]} {[%emt 00:00:04]} Kd7 {[%clk
00:00:48]} {[%emt 00:00:08]} 48. Bd4 {[%clk 00:01:14]} {[%emt 00:00:07]} Re1+
{[%clk 00:00:49]} {[%emt 00:00:10]} 49. Kd3 {[%clk 00:01:20]} {[%emt 00:00:03]}
Rh1 {[%clk 00:00:52]} {[%emt 00:00:07]} 50. Kc4 {[%clk 00:01:27]} {[%emt
00:00:03]} Rc1+ {[%clk 00:00:58]} {[%emt 00:00:04]} 51. Bc3 {[%clk 00:01:32]}
{[%emt 00:00:05]} Rh1 {[%clk 00:01:02]} {[%emt 00:00:06]} 52. Bb4 {[%clk
00:01:38]} {[%emt 00:00:05]} Rd1 {[%clk 00:01:04]} {[%emt 00:00:07]} 53. Rb7+
{[%clk 00:01:43]} {[%emt 00:00:06]} Kc6 {[%clk 00:01:00]} {[%emt 00:00:13]} 54.
Rh7 {[%clk 00:01:48]} {[%emt 00:00:04]} e5 {[%clk 00:00:52]} {[%emt 00:00:20]}
55. Rh6+ {[%clk 00:01:56]} {[%emt 00:00:01]} Kd7 {[%clk 00:00:57]} {[%emt
00:00:05]} 56. Bc5 {[%clk 00:01:54]} {[%emt 00:00:12]} e4 {[%clk 00:00:56]}
{[%emt 00:00:12]} 57. Rh5 {[%clk 00:01:51]} {[%emt 00:00:12]} Ke6 {[%clk
00:00:52]} {[%emt 00:00:14]} 58. Rh6+ {[%clk 00:01:59]} {[%emt 00:00:03]} Kf5
{[%clk 00:00:53]} {[%emt 00:00:08]} 59. Bd4 {[%clk 00:02:06]} {[%emt 00:00:03]}
Kf4 {[%clk 00:00:49]} {[%emt 00:00:15]} 60. Rf6 {[%clk 00:02:14]} {[%emt
00:00:01]} Kg5 {[%clk 00:00:53]} {[%emt 00:00:07]} 61. Rf8 {[%clk 00:02:17]}
{[%emt 00:00:06]} Kg4 {[%clk 00:00:53]} {[%emt 00:00:10]} 62. Be3 {[%clk
00:02:07]} {[%emt 00:00:17]} Kg3 {[%clk 00:00:38]} {[%emt 00:00:29]} 63. Rf4
{[%clk 00:02:03]} {[%emt 00:00:14]} Re1 {[%clk 00:00:28]} {[%emt 00:00:21]} 64.
Kd4 {[%clk 00:02:04]} {[%emt 00:00:08]} Rd1+ {[%clk 00:00:33]} {[%emt
00:00:04]} 65. Kxe4 {[%clk 00:02:10]} {[%emt 00:00:05]} Ra1 {[%clk 00:00:39]}
{[%emt 00:00:04]} 66. Rf8 {[%clk 00:01:56]} {[%emt 00:00:24]} Ra4+ {[%clk
00:00:47]} {[%emt 00:00:02]} 67. Bd4 {[%clk 00:02:04]} {[%emt 00:00:01]} Ra3
{[%clk 00:00:15]} {[%emt 00:00:43]} 68. Rg8+ {[%clk 00:02:12]} {[%emt
00:00:02]} Kh3 {[%clk 00:00:11]} {[%emt 00:00:14]} 69. Kf4 {[%clk 00:01:57]}
{[%emt 00:00:24]} Rb3 {[%clk 00:00:16]} {[%emt 00:00:05]} 70. Be3 {[%emt
00:00:41]} 1-0

[Event "NM-Senior Hurtig 2018"]
[Site "Frimurer Logen, Norway"]
[Date "2018.11.11"]
[Round "8.4"]
[White "Brobakken, Geir"]
[Black "Ugland, Torge"]
[Result "1-0"]
[TimeControl "20 + 10"]
[WhiteElo "1759"]
[BlackElo "1646"]

1. e4 {[%clk 00:20:08]} {[%emt 00:00:01]} e5 {[%clk 00:20:09]} {[%emt
00:00:02]} 2. Nc3 {[%clk 00:20:15]} {[%emt 00:00:02]} Nf6 {[%clk 00:20:09]}
{[%emt 00:00:09]} 3. Bc4 {[%clk 00:20:22]} {[%emt 00:00:04]} d6 {[%clk
00:19:38]} {[%emt 00:00:42]} 4. d3 {[%clk 00:20:25]} {[%emt 00:00:06]} c6
{[%clk 00:19:33]} {[%emt 00:00:15]} 5. Nf3 {[%clk 00:20:22]} {[%emt 00:00:13]}
Be6 {[%clk 00:19:10]} {[%emt 00:00:32]} 6. a3 {[%clk 00:20:07]} {[%emt
00:00:26]} Bxc4 {[%clk 00:19:16]} {[%emt 00:00:04]} 7. dxc4 {[%clk 00:20:15]}
{[%emt 00:00:02]} Be7 {[%clk 00:19:13]} {[%emt 00:00:14]} 8. Qd3 {[%clk
00:20:16]} {[%emt 00:00:08]} O-O {[%clk 00:19:05]} {[%emt 00:00:18]} 9. O-O
{[%clk 00:19:50]} {[%emt 00:00:36]} Na6 {[%clk 00:18:15]} {[%emt 00:01:00]} 10.
Be3 {[%clk 00:18:40]} {[%emt 00:01:20]} Nc7 {[%clk 00:17:54]} {[%emt 00:00:31]}
11. h3 {[%clk 00:18:36]} {[%emt 00:00:15]} Ne6 {[%clk 00:17:38]} {[%emt
00:00:25]} 12. Rfd1 {[%clk 00:17:58]} {[%emt 00:00:48]} Qc7 {[%clk 00:16:34]}
{[%emt 00:01:13]} 13. Ne2 {[%clk 00:16:02]} {[%emt 00:02:06]} Rfd8 {[%clk
00:15:42]} {[%emt 00:01:03]} 14. Ng3 {[%clk 00:16:00]} {[%emt 00:00:12]} Rd7
{[%clk 00:13:05]} {[%emt 00:02:47]} 15. Nf5 {[%clk 00:13:56]} {[%emt 00:02:14]}
Rad8 {[%clk 00:12:57]} {[%emt 00:00:17]} 16. Nxe7+ {[%clk 00:13:45]} {[%emt
00:00:22]} Rxe7 {[%clk 00:13:03]} {[%emt 00:00:04]} 17. Bg5 {[%clk 00:12:33]}
{[%emt 00:01:23]} Nc5 {[%clk 00:12:46]} {[%emt 00:00:26]} 18. Qe2 {[%clk
00:12:32]} {[%emt 00:00:12]} Re6 {[%clk 00:10:54]} {[%emt 00:02:02]} 19. Bxf6
{[%clk 00:12:23]} {[%emt 00:00:18]} Rxf6 {[%clk 00:10:47]} {[%emt 00:00:16]} 20.
b4 {[%clk 00:11:39]} {[%emt 00:00:55]} Ne6 {[%clk 00:10:46]} {[%emt 00:00:11]}
21. g3 {[%clk 00:11:26]} {[%emt 00:00:24]} Qe7 {[%clk 00:10:07]} {[%emt
00:00:49]} 22. Rd3 {[%clk 00:11:24]} {[%emt 00:00:11]} Rg6 {[%clk 00:09:10]}
{[%emt 00:01:07]} 23. Kh2 {[%clk 00:11:33]} {[%emt 00:00:02]} b6 {[%clk
00:07:35]} {[%emt 00:01:44]} 24. Rad1 {[%clk 00:11:33]} {[%emt 00:00:10]} Nd4
{[%clk 00:07:14]} {[%emt 00:00:31]} 25. Nxd4 {[%clk 00:11:27]} {[%emt
00:00:15]} exd4 {[%clk 00:07:22]} {[%emt 00:00:03]} 26. Rxd4 {[%clk 00:11:05]}
{[%emt 00:00:32]} Re6 {[%clk 00:06:03]} {[%emt 00:01:28]} 27. f3 {[%clk
00:10:53]} {[%emt 00:00:23]} g6 {[%clk 00:06:08]} {[%emt 00:00:05]} 28. R1d2
{[%clk 00:07:26]} {[%emt 00:03:38]} f5 {[%clk 00:05:11]} {[%emt 00:01:06]} 29.
c5 {[%clk 00:07:17]} {[%emt 00:00:19]} bxc5 {[%clk 00:05:07]} {[%emt 00:00:14]}
30. bxc5 {[%clk 00:07:22]} {[%emt 00:00:08]} d5 {[%clk 00:05:09]} {[%emt
00:09:33]} 31. Qg2 {[%clk 00:07:13]} Re8 {[%clk 00:04:53]} 32. exd5 {[%clk
00:05:21]} cxd5 {[%clk 00:04:51]} 33. Rxd5 {[%clk 00:05:15]} Rc8 {[%clk
00:02:36]} 34. Qf2 {[%clk 00:05:15]} Rec6 {[%clk 00:02:22]} 35. Rd7 {[%clk
00:04:49]} Qxc5 {[%clk 00:01:54]} 36. Qe2 {[%clk 00:04:26]} Rf6 {[%clk
00:01:02]} 37. Qd3 {[%clk 00:03:51]} {[%emt 00:00:20]} Rff8 {[%clk 00:00:57]}
{[%emt 00:00:15]} 38. Kg2 {[%clk 00:02:14]} {[%emt 00:01:48]} Rf7 {[%clk
00:00:29]} {[%emt 00:00:38]} 39. Rd8+ {[%clk 00:02:12]} {[%emt 00:00:12]} Rxd8
{[%clk 00:00:25]} {[%emt 00:00:15]} 40. Qxd8+ {[%clk 00:02:20]} {[%emt
00:00:02]} Kg7 {[%clk 00:00:34]} 41. Qd4+ {[%clk 00:02:28]} {[%emt 00:00:02]}
Qxd4 {[%clk 00:00:38]} {[%emt 00:00:06]} 42. Rxd4 {[%clk 00:02:37]} {[%emt
00:00:02]} Rc7 {[%clk 00:00:40]} {[%emt 00:00:06]} 43. c4 {[%clk 00:02:46]}
{[%emt 00:00:02]} Rb7 {[%clk 00:00:36]} {[%emt 00:00:14]} 44. f4 {[%clk
00:02:24]} {[%emt 00:00:32]} Kf7 {[%clk 00:00:42]} {[%emt 00:00:05]} 45. Rd3
{[%clk 00:02:29]} {[%emt 00:00:05]} a5 {[%clk 00:00:39]} {[%emt 00:00:12]} 46.
Kf3 {[%clk 00:02:37]} {[%emt 00:00:02]} a4 {[%clk 00:00:47]} {[%emt 00:00:02]}
47. Ke3 {[%clk 00:02:31]} {[%emt 00:00:16]} Ke6 {[%clk 00:00:31]} {[%emt
00:00:26]} 48. Kd4 {[%clk 00:02:31]} {[%emt 00:00:10]} Kd6 {[%clk 00:00:23]}
{[%emt 00:00:18]} 49. c5+ {[%clk 00:02:36]} {[%emt 00:00:06]} Kc6 {[%clk
00:00:32]} 50. Re3 {[%clk 00:02:45]} Rc7 {[%clk 00:00:27]} {[%emt 00:00:16]} 51.
Re6+ {[%clk 00:02:48]} {[%emt 00:00:07]} Kb7 {[%clk 00:00:26]} {[%emt
00:00:11]} 52. Rb6+ {[%clk 00:02:50]} {[%emt 00:00:08]} Ka7 {[%clk 00:00:31]}
{[%emt 00:00:05]} 53. Rb4 {[%clk 00:02:59]} Re7 {[%clk 00:00:22]} {[%emt
00:00:19]} 54. Rxa4+ {[%clk 00:03:06]} {[%emt 00:00:03]} Kb7 {[%clk 00:00:31]}
{[%emt 00:00:01]} 55. Rb4+ {[%clk 00:03:05]} {[%emt 00:00:11]} 1-0

[Event "NM-Senior Hurtig 2018"]
[Site "Frimurer Logen, Norway"]
[Date "2018.11.11"]
[Round "8.5"]
[White "Milvang, Otto"]
[Black "Oldernes, Lars Arne"]
[Result "0-1"]
[TimeControl "20 + 10"]
[WhiteElo "1691"]
[BlackElo "1697"]

1. c4 {[%clk 00:19:59]} {[%emt 00:00:11]} Nf6 {[%clk 00:19:44]} {[%emt
00:00:27]} 2. g3 {[%clk 00:20:06]} {[%emt 00:00:03]} c6 {[%clk 00:19:12]}
{[%emt 00:00:42]} 3. Nc3 {[%clk 00:20:11]} {[%emt 00:00:05]} e5 {[%clk
00:18:48]} {[%emt 00:00:34]} 4. Bg2 {[%clk 00:20:07]} {[%emt 00:00:14]} Be7
{[%clk 00:18:51]} {[%emt 00:00:06]} 5. Nf3 {[%clk 00:20:02]} {[%emt 00:00:16]}
d6 {[%clk 00:18:55]} {[%emt 00:00:06]} 6. O-O {[%clk 00:19:58]} {[%emt
00:00:14]} Be6 {[%clk 00:18:42]} {[%emt 00:00:22]} 7. Qb3 {[%clk 00:19:07]}
{[%emt 00:01:01]} Qc7 {[%clk 00:18:41]} {[%emt 00:00:12]} 8. d3 {[%clk
00:18:35]} {[%emt 00:00:42]} h6 {[%clk 00:18:20]} {[%emt 00:00:31]} 9. Rd1
{[%clk 00:17:47]} {[%emt 00:00:58]} Nbd7 {[%clk 00:18:12]} {[%emt 00:00:18]} 10.
Qc2 {[%clk 00:17:36]} {[%emt 00:00:21]} O-O {[%clk 00:17:53]} {[%emt 00:00:30]}
11. b3 {[%clk 00:17:43]} {[%emt 00:00:02]} Rfe8 {[%clk 00:16:42]} {[%emt
00:01:20]} 12. Bb2 {[%clk 00:17:20]} {[%emt 00:00:33]} Nf8 {[%clk 00:16:48]}
{[%emt 00:00:05]} 13. e3 {[%clk 00:17:10]} {[%emt 00:00:19]} Rad8 {[%clk
00:16:49]} {[%emt 00:00:10]} 14. Ne2 {[%clk 00:16:56]} {[%emt 00:00:24]} Ng6
{[%clk 00:16:29]} {[%emt 00:00:29]} 15. h3 {[%clk 00:16:43]} {[%emt 00:00:23]}
Qd7 {[%clk 00:15:48]} {[%emt 00:00:52]} 16. Kh2 {[%clk 00:16:50]} {[%emt
00:00:02]} Qc7 {[%clk 00:14:54]} {[%emt 00:01:05]} 17. Rac1 {[%clk 00:16:51]}
{[%emt 00:00:09]} Rc8 {[%clk 00:14:45]} {[%emt 00:00:19]} 18. Rg1 {[%clk
00:16:40]} {[%emt 00:00:20]} a6 {[%clk 00:14:29]} {[%emt 00:00:27]} 19. Qd2
{[%clk 00:16:45]} {[%emt 00:00:05]} Red8 {[%clk 00:14:27]} {[%emt 00:00:12]} 20.
Nc3 {[%clk 00:16:29]} {[%emt 00:00:25]} Bf5 {[%clk 00:14:20]} {[%emt 00:00:17]}
21. g4 {[%clk 00:15:10]} {[%emt 00:01:28]} Bd7 {[%clk 00:13:42]} {[%emt
00:00:50]} 22. Kh1 {[%clk 00:15:02]} {[%emt 00:00:18]} Qa5 {[%clk 00:13:12]}
{[%emt 00:00:40]} 23. a3 {[%clk 00:13:43]} {[%emt 00:01:29]} Nh7 {[%clk
00:13:19]} {[%emt 00:00:03]} 24. b4 {[%clk 00:13:33]} {[%emt 00:00:21]} Qc7
{[%clk 00:13:20]} {[%emt 00:00:08]} 25. Ne4 {[%clk 00:13:21]} {[%emt 00:00:22]}
f5 {[%clk 00:13:04]} {[%emt 00:00:26]} 26. gxf5 {[%clk 00:12:25]} {[%emt
00:01:06]} Bxf5 {[%clk 00:13:09]} {[%emt 00:00:04]} 27. Ng3 {[%clk 00:12:06]}
{[%emt 00:00:29]} Be6 {[%clk 00:13:12]} {[%emt 00:00:08]} 28. Bf1 {[%clk
00:12:06]} {[%emt 00:00:10]} Bf6 {[%clk 00:12:54]} {[%emt 00:00:27]} 29. Nh5
{[%clk 00:10:57]} {[%emt 00:01:19]} Qf7 {[%clk 00:12:51]} {[%emt 00:00:14]} 30.
Nxf6+ {[%clk 00:09:34]} {[%emt 00:01:33]} Qxf6 {[%clk 00:12:57]} {[%emt
00:00:04]} 31. d4 {[%clk 00:07:53]} {[%emt 00:01:50]} Qxf3+ {[%clk 00:12:29]}
{[%emt 00:00:37]} 32. Bg2 {[%clk 00:07:31]} {[%emt 00:00:33]} Qf7 {[%clk
00:12:07]} {[%emt 00:00:32]} 33. Qc2 {[%clk 00:06:43]} {[%emt 00:00:58]} Bf5
{[%clk 00:11:23]} {[%emt 00:00:54]} 34. e4 {[%clk 00:06:14]} {[%emt 00:00:40]}
Bd7 {[%clk 00:11:08]} {[%emt 00:00:24]} 35. Qd2 {[%clk 00:04:57]} {[%emt
00:01:26]} Qf4 {[%clk 00:08:50]} {[%emt 00:02:30]} 36. Qe2 {[%clk 00:04:02]}
{[%emt 00:01:05]} Rf8 {[%clk 00:08:33]} {[%emt 00:00:26]} 37. Rcf1 {[%clk
00:02:55]} {[%emt 00:01:17]} Nh4 {[%clk 00:08:21]} {[%emt 00:00:22]} 38. Bc1
{[%clk 00:02:40]} {[%emt 00:00:25]} Qf6 {[%clk 00:08:14]} {[%emt 00:00:17]} 39.
dxe5 {[%clk 00:02:28]} {[%emt 00:00:23]} dxe5 {[%clk 00:08:19]} {[%emt
00:00:05]} 40. Qd3 {[%clk 00:01:57]} {[%emt 00:00:41]} Rcd8 {[%clk 00:07:51]}
{[%emt 00:00:37]} 41. Qg3 {[%clk 00:01:50]} {[%emt 00:00:17]} Nf3 {[%clk
00:06:31]} {[%emt 00:01:31]} 42. Bxh6 {[%clk 00:00:53]} {[%emt 00:01:06]} Nxg1
{[%clk 00:06:03]} {[%emt 00:00:38]} 43. Rxg1 {[%clk 00:00:20]} {[%emt
00:00:44]} Qxh6 {[%clk 00:06:08]} {[%emt 00:00:05]} 44. Bf1 {[%clk 00:00:20]}
{[%emt 00:00:10]} Rf7 {[%clk 00:06:05]} {[%emt 00:00:13]} 45. c5 {[%clk
00:00:15]} {[%emt 00:00:15]} Qf6 {[%clk 00:06:05]} {[%emt 00:00:09]} 46. Bc4
{[%clk 00:00:17]} {[%emt 00:00:09]} Qf4 {[%clk 00:06:07]} {[%emt 00:00:08]} 47.
Qxg7# {[%clk 00:00:13]} {[%emt 00:00:14]} Qf3+ {[%emt 00:00:37]} 48. Qg3+ Qf6
{[%clk 00:04:59]} {[%emt 00:00:04]} 0-1